bitfinex-derivatives/quotes_BTCF0:USTF0_20241110
["timestamp","ask_amount","ask_price","bid_price","bid_amount"]
[1731277459884,0.3608,81218.0,81217.0,6.2e-07]
[1731277460071,0.3608,81218.0,81160.0,0.3608]
[1731277460272,0.3608,81197.0,81168.0,0.3608]
[1731277460579,0.061543,81191.0,81176.0,0.18436274]
[1731277460885,0.36927758,81203.0,81177.0,0.36940443]
[1731277460886,0.3608,81202.0,81177.0,0.36940443]
[1731277461180,0.3608,81202.0,81182.0,0.00014119]
[1731277461479,0.3608,81202.0,81183.0,0.18499031]
[1731277461681,0.3608,81210.0,81186.0,0.3608]
[1731277462077,0.3608,81210.0,81187.0,0.36974724]
[1731277462779,0.061541,81194.0,81187.0,0.18567442]
[1731277462986,0.3608,81210.0,81187.0,0.18567442]
[1731277462987,0.3608,81203.0,81187.0,0.18567442]
[1731277463182,0.3608,81203.0,81188.0,0.1836619]
[1731277463383,0.3608,81210.0,81192.0,0.3608]
[1731277463582,0.41432,81217.0,81202.0,0.3608]
[1731277463782,0.41432,81217.0,81203.0,0.3608]
[1731277463983,0.41432,81217.0,81203.0,0.73040508]
[1731277464183,0.41432,81217.0,81211.0,0.3608]
[1731277464587,0.41432,81217.0,81212.0,0.37039646]
[1731277465086,0.41432,81217.0,81212.0,0.1856454]
[1731277465280,0.41432,81217.0,81213.0,0.1840431]
[1731277465699,0.41432,81217.0,81189.0,0.0057]
[1731277465700,0.061524,81216.0,81214.0,0.10808729]
[1731277465890,0.41432,81217.0,81190.0,0.0057]
[1731277465891,0.3608,81215.0,81190.0,0.0057]
[1731277466086,0.061541,81193.0,81190.0,0.18386097]
[1731277466394,0.061545,81188.0,81187.0,0.18386097]
[1731277466595,0.061545,81188.0,81182.0,0.00014119]
[1731277466596,0.061548,81184.0,81182.0,0.00014119]
[1731277466988,0.36952,81183.0,81182.0,0.00014119]
[1731277467286,0.06155,81182.0,81168.0,0.02464958]
[1731277467485,0.3608,81173.0,81147.0,0.0057]
[1731277467692,0.3608,81173.0,81163.0,0.18460955]
[1731277467892,0.3608,81173.0,81135.0,0.0057]
[1731277467893,0.6608,81173.0,81156.0,0.36817288]
[1731277468081,0.6608,81173.0,81148.0,0.18356333]
[1731277468082,0.06171794,81158.0,81148.0,0.18356333]
[1731277468284,0.06171794,81158.0,81149.0,0.00015278]
[1731277468285,0.06157,81155.0,81149.0,0.00015278]
[1731277468482,0.06157,81155.0,81153.0,0.36993459]
[1731277468692,0.06157,81155.0,81150.0,0.02464958]
[1731277468885,0.00014994,81158.0,81154.0,0.18570979]
[1731277469082,0.41416,81181.0,81155.0,0.73044]
[1731277469288,0.061539,81196.0,81165.0,0.3608]
[1731277469479,0.061539,81196.0,81165.0,0.6608]
[1731277469677,0.061539,81196.0,81166.0,0.36954762]
[1731277469892,0.061534,81203.0,81173.0,0.3608]
[1731277470091,0.41416,81206.0,81180.0,0.3608]
[1731277470092,0.00013282,81196.0,81180.0,0.3608]
[1731277470387,0.00013282,81196.0,81189.0,0.3608]
[1731277470590,0.00013282,81196.0,81181.0,0.36972846]
[1731277470792,0.3608,81194.0,81173.0,0.3608]
[1731277470992,0.3608,81194.0,81164.0,0.3608]
[1731277471287,0.061555,81175.0,81174.0,0.36970708]
[1731277471480,0.6608,81194.0,81166.0,0.3608]
[1731277471481,0.061558,81172.0,81166.0,0.3608]
[1731277471887,0.061558,81172.0,81167.0,0.1855512]
[1731277472089,0.3608,81184.0,81167.0,0.3696826]
[1731277472482,0.061551,81181.0,81167.0,0.3696826]
[1731277472688,0.3608,81184.0,81167.0,0.3696826]
[1731277472996,0.3608,81194.0,81173.0,0.3608]
[1731277472997,0.061547,81186.0,81173.0,0.3608]
[1731277473291,0.3608,81194.0,81174.0,0.3674156]
[1731277473588,0.06154,81195.0,81180.0,0.3608]
[1731277473791,0.06154,81195.0,81174.0,0.3674156]
[1731277473989,0.06154,81195.0,81181.0,0.3674156]
[1731277474193,0.00013282,81196.0,81177.0,0.3608]
[1731277474395,0.061541,81194.0,81182.0,0.18388339]
[1731277474695,0.061541,81194.0,81182.0,0.18396666]
[1731277474995,0.061541,81194.0,81177.0,0.3608]
[1731277474996,0.36093282,81196.0,81187.0,0.3608]
[1731277475196,0.06154,81195.0,81187.0,0.3608]
[1731277475390,0.06154,81195.0,81188.0,0.1858196]
[1731277475987,0.06154,81195.0,81184.0,0.3608]
[1731277476290,0.06154,81195.0,81189.0,0.1858196]
[1731277476493,0.06154,81195.0,81185.0,0.37087246]
[1731277476494,0.06154,81195.0,81185.0,0.18505286]
[1731277476689,0.00013282,81196.0,81190.0,0.37052943]
[1731277476895,0.00013282,81196.0,81190.0,0.18505286]
[1731277477196,0.3608,81230.0,81195.0,0.3608]
[1731277477390,0.061506,81240.0,81216.0,0.3608]
[1731277477592,0.061509,81236.0,81225.0,0.3608]
[1731277477797,0.3608,81233.0,81225.0,0.3608]
[1731277478095,0.3608,81235.0,81226.0,0.28632896]
[1731277478299,0.00010412,81238.0,81226.0,0.28632896]
[1731277478599,0.061511,81234.0,81226.0,0.28632896]
[1731277478786,0.061515,81228.0,81226.0,0.00013731]
[1731277479293,0.3608,81227.0,81226.0,0.00013731]
[1731277480300,0.061515,81228.0,81226.0,0.00013731]
[1731277480489,0.06151,81235.0,81226.0,0.36862144]
[1731277480802,0.00010412,81238.0,81226.0,0.36862144]
[1731277480994,0.00010412,81238.0,81226.0,0.18480976]
[1731277481593,0.061508,81237.0,81226.0,0.18480976]
[1731277481792,0.061514,81229.0,81226.0,0.18480976]
[1731277483289,0.36932,81228.0,81202.0,0.0057]
[1731277483494,0.36932,81228.0,81195.0,0.0132]
[1731277483495,0.061527,81212.0,81194.0,0.3608]
[1731277483693,0.061528,81211.0,81208.0,0.36868028]
[1731277484002,0.3608,81209.0,81200.0,0.36868028]
[1731277484201,0.061531,81207.0,81194.0,0.3608]
[1731277484389,0.061532,81206.0,81204.0,0.18514103]
[1731277484594,0.061532,81206.0,81201.0,0.18514103]
[1731277484790,0.422332,81206.0,81199.0,0.08444514]
[1731277485101,0.422332,81206.0,81205.0,0.18514103]
[1731277485302,0.422332,81206.0,81198.0,0.00012313]
[1731277485303,0.061527,81213.0,81200.0,0.36703866]
[1731277485602,0.00010412,81238.0,81212.0,0.3608]
[1731277485898,0.3608,81272.0,81203.0,1.00231364]
[1731277485899,0.77488,81273.0,81237.0,0.27447498]
[1731277486102,0.41408,81273.0,81243.0,0.36924]
[1731277486305,0.12939613,81272.0,81251.0,0.3608]
[1731277486500,0.06791513,81271.0,81251.0,0.63527498]
[1731277486698,0.03013853,81270.0,81263.0,0.3608]
[1731277486998,0.061457,81305.0,81263.0,0.3608]
[1731277486999,0.03013853,81269.0,81265.0,0.3608]
[1731277487198,0.00014431,81274.0,81265.0,0.3608]
[1731277487391,0.3608,81308.0,81273.0,0.3608]
[1731277487596,0.3608,81300.0,81288.0,0.3608]
[1731277487797,0.06788927,81299.0,81288.0,0.2925221]
[1731277488002,0.06788927,81299.0,81274.0,0.37009925]
[1731277488003,0.06788927,81298.0,81289.0,0.37009925]
[1731277488193,0.42226,81301.0,81289.0,0.37009925]
[1731277488194,0.03012771,81297.0,81289.0,0.37009925]
[1731277488404,0.41117115,81333.0,81290.0,0.3608]
[1731277488606,0.3608,81366.0,81300.0,0.05]
[1731277488804,0.0057,81434.0,81300.0,0.05]
[1731277489008,0.2993,81801.0,81300.0,0.05]
[1731277489009,0.19448629,81539.0,81499.0,0.27447498]
[1731277489204,0.03768777,81538.0,81536.0,0.3608]
[1731277489506,0.08187316,81538.0,81537.0,0.1843298]
[1731277490014,0.07827316,81538.0,81537.0,0.00014734]
[1731277490205,0.36792,81537.0,81536.0,0.28267418]
[1731277490395,0.36792,81538.0,81536.0,0.03982987]
[1731277490595,0.00015418,81539.0,81536.0,0.03982987]
[1731277490802,0.00015418,81539.0,81537.0,0.18472135]
[1731277491197,0.00015418,81539.0,81536.0,0.03982987]
[1731277491198,0.36792,81538.0,81536.0,0.03982987]
[1731277491405,0.41352,81537.0,81520.0,0.3608]
[1731277491598,0.41352,81537.0,81503.0,0.3608]
[1731277491599,0.061296,81518.0,81503.0,0.3608]
[1731277491801,0.061302,81510.0,81503.0,0.3608]
[1731277491996,0.061302,81510.0,81475.0,0.3608]
[1731277491997,0.3608,81510.0,81475.0,0.3608]
[1731277492200,0.6608,81510.0,81475.0,0.3608]
[1731277492401,0.6608,81510.0,81422.0,0.01844]
[1731277492402,0.3608,81485.0,81449.0,0.3608]
[1731277492699,0.3608,81464.0,81442.0,0.36743323]
[1731277492899,0.3608,81454.0,81450.0,0.15271361]
[1731277493205,0.3608,81454.0,81408.0,0.43087685]
[1731277493206,0.3608,81454.0,81431.0,0.36330861]
[1731277493409,0.7216,81432.0,81431.0,0.36330861]
[1731277493705,0.3608,81433.0,81429.0,0.00015896]
[1731277493904,0.3608,81433.0,81371.0,0.38793885]
[1731277493905,0.422162,81430.0,81371.0,0.36949885]
[1731277494109,0.6608,81433.0,81336.0,0.00148303]
[1731277494110,0.3608,81380.0,81336.0,0.00148303]
[1731277494314,0.7216,81337.0,81300.0,0.16146]
[1731277494498,0.3608,81301.0,81300.0,0.1]
[1731277494699,0.00184659,81403.0,81300.0,0.1]
[1731277494700,0.3608,81321.0,81301.0,0.22445898]
[1731277494895,0.3608,81326.0,81302.0,8.688e-05]
[1731277495096,0.3608,81335.0,81302.0,8.688e-05]
[1731277495394,9.441e-05,81341.0,81314.0,0.3608]
[1731277495698,9.441e-05,81341.0,81315.0,0.36931634]
[1731277495899,0.3608,81337.0,81319.0,0.3608]
[1731277496097,9.441e-05,81341.0,81319.0,0.3608]
[1731277496299,9.441e-05,81341.0,81320.0,0.18388853]
[1731277496710,9.441e-05,81341.0,81326.0,0.3608]
[1731277497010,9.441e-05,81341.0,81327.0,0.18494018]
[1731277497399,0.3300429,81340.0,81327.0,0.18494018]
[1731277497600,0.3300429,81339.0,81327.0,0.18494018]
[1731277497799,0.3300429,81339.0,81326.0,0.18425325]
[1731277498107,0.3608,81343.0,81328.0,0.18425325]
[1731277498406,0.00151952,81361.0,81305.0,0.55347785]
[1731277498407,9.328e-05,81342.0,81329.0,0.14159156]
[1731277498604,9.328e-05,81342.0,81335.0,0.3608]
[1731277498808,9.328e-05,81342.0,81336.0,0.00014047]
[1731277499107,9.328e-05,81342.0,81341.0,0.3608]
[1731277499299,9.328e-05,81342.0,81341.0,0.7296]
[1731277499503,9.328e-05,81342.0,81341.0,1.3964852]
[1731277500102,9.328e-05,81342.0,81341.0,1.53668599]
[1731277500303,9.328e-05,81342.0,81341.0,1.3964852]
[1731277500499,0.00304061,81361.0,81341.0,1.3964852]
[1731277500700,0.00304061,81361.0,81360.0,0.3608]
[1731277500902,0.00608032,81508.0,81360.0,0.3608]
[1731277500903,0.3608,81396.0,81360.0,0.3608]
[1731277501102,0.3608,81396.0,81374.0,0.3608]
[1731277501401,0.061372,81417.0,81387.0,0.3608]
[1731277501604,0.3608,81421.0,81387.0,0.3608]
[1731277501605,0.00011082,81401.0,81387.0,0.72955947]
[1731277501915,0.061352,81443.0,81399.0,0.3608]
[1731277502204,0.3608,81449.0,81426.0,0.3608]
[1731277502205,0.3608,81440.0,81426.0,0.3608]
[1731277502411,0.3608,81459.0,81434.0,0.3608]
[1731277502606,0.3608,81483.0,81448.0,0.3608]
[1731277502802,0.33013618,81478.0,81455.0,0.3608]
[1731277503010,0.00010605,81491.0,81449.0,0.36801567]
[1731277503200,0.3608,81469.0,81456.0,0.18419395]
[1731277503402,0.061368,81423.0,81401.0,0.3608]
[1731277503606,0.32873618,81429.0,81408.0,0.3608]
[1731277503797,0.32873618,81425.0,81419.0,0.18516914]
[1731277504002,0.3608,81430.0,81410.0,0.02459679]
[1731277504198,0.32873618,81421.0,81410.0,0.02459679]
[1731277504407,0.0001399,81424.0,81420.0,0.1854326]
[1731277504610,0.0001399,81424.0,81423.0,0.3608]
[1731277505100,0.0001399,81424.0,81423.0,0.1854326]
[1731277505507,0.0001399,81424.0,81423.0,0.18458155]
[1731277505713,0.0001399,81424.0,81423.0,0.36824444]
[1731277505914,0.0001399,81424.0,81423.0,0.18366289]
[1731277506307,0.0001399,81424.0,81421.0,0.18366289]
[1731277506610,0.0001399,81424.0,81423.0,0.18350897]
[1731277506808,0.0001399,81424.0,81422.0,0.36883823]
[1731277507005,4.839e-05,81424.0,81423.0,0.36883823]
[1731277507211,4.839e-05,81424.0,81423.0,0.55194897]
[1731277507513,4.839e-05,81424.0,81423.0,0.73553269]
[1731277507912,4.839e-05,81424.0,81423.0,0.18375041]
[1731277508301,4.839e-05,81424.0,81422.0,0.18375041]
[1731277508609,4.839e-05,81424.0,81423.0,0.18312961]
[1731277509006,4.839e-05,81424.0,81423.0,0.57643308]
[1731277509213,4.839e-05,81424.0,81423.0,0.39112269]
[1731277510912,4.839e-05,81424.0,81423.0,0.75192269]
[1731277512412,4.839e-05,81424.0,81392.0,0.00096]
[1731277512413,0.3286068,81412.0,81397.0,0.3608]
[1731277512604,0.66084839,81424.0,81397.0,0.3608]
[1731277512605,0.3286068,81399.0,81397.0,0.3608]
[1731277512809,0.3608,81413.0,81397.0,0.3608]
[1731277513010,0.3286068,81412.0,81398.0,0.18412042]
[1731277513217,0.3608,81413.0,81398.0,0.36887217]
[1731277513517,4.839e-05,81424.0,81412.0,0.3608]
[1731277513707,4.839e-05,81424.0,81422.0,0.3608]
[1731277513906,4.839e-05,81424.0,81423.0,0.3608]
[1731277514112,4.839e-05,81424.0,81423.0,0.54391483]
[1731277514312,0.62865519,81424.0,81399.0,0.00579665]
[1731277514618,0.30004839,81424.0,81400.0,0.1835741]
[1731277514915,0.3286068,81410.0,81400.0,0.5443741]
[1731277515412,0.3286068,81410.0,81407.0,0.3608]
[1731277515610,0.3286068,81410.0,81400.0,0.5454141]
[1731277515819,0.3286068,81410.0,81408.0,0.183757]
[1731277516010,0.3286068,81410.0,81401.0,0.183757]
[1731277516415,4.839e-05,81424.0,81400.0,0.3608]
[1731277516719,4.839e-05,81424.0,81414.0,0.3608]
[1731277517118,4.839e-05,81424.0,81421.0,0.3608]
[1731277517417,4.839e-05,81424.0,81422.0,0.18434739]
[1731277517720,0.3286068,81423.0,81422.0,0.18434739]
[1731277518310,0.3286068,81423.0,81401.0,0.3608]
[1731277518311,0.3,81423.0,81401.0,0.3608]
[1731277518512,0.6608,81423.0,81399.0,9.665e-05]
[1731277518715,0.3608,81404.0,81402.0,0.18372117]
[1731277519123,0.061374,81415.0,81399.0,9.665e-05]
[1731277519413,0.061374,81415.0,81403.0,0.18372117]
[1731277519414,0.3608,81405.0,81403.0,0.18372117]
[1731277519617,0.3608,81405.0,81400.0,0.18518007]
[1731277519822,0.3608,81405.0,81399.0,9.665e-05]
[1731277520011,0.7216,81405.0,81404.0,0.18518007]
[1731277520216,0.7216,81405.0,81401.0,0.18518007]
[1731277520512,0.061385,81400.0,81399.0,9.665e-05]
[1731277520815,0.7216,81405.0,81402.0,0.18308413]
[1731277521221,0.7216,81405.0,81400.0,0.18308413]
[1731277521222,0.3608,81420.0,81399.0,9.665e-05]
[1731277521521,0.3608,81409.0,81403.0,0.18501751]
[1731277521710,0.3608,81408.0,81401.0,0.18501751]
[1731277521910,0.3608,81408.0,81399.0,9.665e-05]
[1731277522118,0.3608,81413.0,81404.0,0.18501751]
[1731277522315,0.3608,81413.0,81402.0,0.18501751]
[1731277522516,0.06138,81407.0,81399.0,9.665e-05]
[1731277522717,0.06138,81407.0,81405.0,0.18519769]
[1731277522915,0.3608,81406.0,81403.0,0.18519769]
[1731277523113,0.061385,81400.0,81399.0,9.665e-05]
[1731277523411,0.422185,81400.0,81399.0,5.665e-05]
[1731277524118,0.3608,81400.0,81399.0,5.665e-05]
[1731277524415,0.3608,81400.0,81399.0,0.18319333]
[1731277526022,0.3608,81400.0,81399.0,5.665e-05]
[1731277526323,0.3608,81400.0,81379.0,0.0057]
[1731277526324,0.0614,81380.0,81379.0,0.0057]
[1731277526522,0.061409,81368.0,81355.0,0.0057]
[1731277526818,0.061409,81368.0,81343.0,0.0057]
[1731277526819,0.3608,81368.0,81343.0,0.0057]
[1731277527012,0.3608,81351.0,81332.0,0.3608]
[1731277527214,0.3608,81351.0,81348.0,0.18395035]
[1731277527418,0.3608,81351.0,81340.0,0.18395035]
[1731277527614,0.3608,81351.0,81345.0,0.18477216]
[1731277527826,0.3608,81351.0,81349.0,0.18477216]
[1731277528026,0.3608,81351.0,81341.0,0.18477216]
[1731277528219,0.3608,81351.0,81346.0,0.18477216]
[1731277528419,0.00010464,81355.0,81350.0,0.36868854]
[1731277528618,0.00010464,81355.0,81351.0,0.36876]
[1731277528619,4.799e-05,81355.0,81351.0,0.36876]
[1731277528827,0.061424,81348.0,81347.0,0.18405823]
[1731277529019,0.061424,81348.0,81346.0,0.36797461]
[1731277529218,0.061424,81348.0,81347.0,0.18405823]
[1731277529423,0.061424,81348.0,81337.0,0.18475999]
[1731277529623,0.061424,81348.0,81329.0,0.3692246]
[1731277529624,0.3608,81340.0,81329.0,0.3692246]
[1731277529931,0.3608,81340.0,81338.0,0.3685939]
[1731277530226,0.3608,81340.0,81339.0,0.18383391]
[1731277530531,0.3608,81340.0,81339.0,0.1852244]
[1731277531030,0.3608,81340.0,81339.0,0.18477793]
[1731277531219,0.3608,81340.0,81339.0,0.37000233]
[1731277531414,0.3608,81340.0,81338.0,0.18519153]
[1731277531616,0.3608,81340.0,81339.0,0.18409075]
[1731277531927,0.3608,81340.0,81339.0,0.36884]
[1731277532221,0.422227,81345.0,81339.0,0.36965205]
[1731277532423,0.422227,81345.0,81339.0,0.1855613]
[1731277532623,0.3608,81345.0,81339.0,0.1855613]
[1731277532821,0.3608,81345.0,81340.0,0.18446325]
[1731277533131,0.3608,81345.0,81340.0,0.1855613]
[1731277533322,0.3608,81345.0,81337.0,0.18446325]
[1731277533526,0.3608,81345.0,81341.0,0.18332534]
[1731277533720,0.3608,81345.0,81341.0,0.18482984]
[1731277534027,0.3608,81345.0,81342.0,0.18332534]
[1731277534932,0.061432,81338.0,81336.0,0.18477194]
[1731277535119,0.3608,81337.0,81334.0,0.18477194]
[1731277535319,0.3608,81337.0,81334.0,0.18353253]
[1731277535525,0.3608,81337.0,81334.0,0.18499816]
[1731277536030,0.3608,81337.0,81335.0,0.18353253]
[1731277536226,0.061433,81336.0,81334.0,0.18499816]
[1731277536422,0.3608,81337.0,81312.0,0.0057]
[1731277536620,0.3608,81337.0,81333.0,8.02e-05]
[1731277536621,0.061434,81334.0,81333.0,8.02e-05]
[1731277537022,0.422234,81334.0,81333.0,0.18441406]
[1731277537532,0.422234,81334.0,81333.0,8.02e-05]
[1731277537928,0.061448,81317.0,81312.0,0.0057]
[1731277538124,0.3608,81313.0,81290.0,0.0057]
[1731277538422,0.3608,81313.0,81310.0,0.1847915]
[1731277538830,0.3608,81313.0,81306.0,0.1847915]
[1731277539036,0.3608,81313.0,81307.0,9.182e-05]
[1731277539037,0.3608,81309.0,81307.0,9.182e-05]
[1731277539427,0.061454,81308.0,81307.0,9.182e-05]
[1731277539736,0.430414,81308.0,81307.0,9.182e-05]
[1731277540533,0.3,81308.0,81285.0,0.0018449]
[1731277540835,0.3608,81287.0,81286.0,0.18369952]
[1731277541234,0.3608,81287.0,81276.0,0.06106729]
[1731277541235,0.35928429,81287.0,81284.0,0.18369952]
[1731277541534,0.36092239,81304.0,81286.0,0.3689857]
[1731277541835,0.36092239,81304.0,81285.0,0.54454677]
[1731277542131,0.00012239,81304.0,81295.0,0.3608]
[1731277542341,0.061461,81300.0,81295.0,0.3608]
[1731277542534,0.00012239,81304.0,81285.0,8.94e-05]
[1731277542730,0.061471,81287.0,81285.0,8.94e-05]
[1731277543035,0.422271,81287.0,81285.0,8.94e-05]
[1731277543439,0.36908,81286.0,81285.0,8.94e-05]
[1731277543739,0.00064,81287.0,81286.0,0.18369269]
[1731277544046,0.3608,81298.0,81281.0,0.3608]
[1731277544240,0.422262,81298.0,81286.0,0.18369269]
[1731277544543,0.422262,81298.0,81292.0,0.0001222]
[1731277544840,0.3608,81298.0,81293.0,0.18535251]
[1731277545433,0.061461,81299.0,81293.0,0.18535251]
[1731277546346,0.00012239,81304.0,81293.0,0.18535251]
[1731277548453,0.06157939,81304.0,81293.0,0.18535251]
[1731277549342,0.061459,81302.0,81293.0,0.18535251]
[1731277549544,0.061461,81299.0,81292.0,0.0001222]
[1731277550152,0.061465,81294.0,81292.0,0.0001222]
[1731277550450,0.3608,81295.0,81269.0,0.3608]
[1731277550649,0.061441,81326.0,81269.0,0.3608]
[1731277550650,0.27186167,81311.0,81283.0,0.3608]
[1731277550847,0.061454,81308.0,81283.0,0.3608]
[1731277551152,0.27186167,81311.0,81284.0,0.18485678]
[1731277551452,0.061455,81307.0,81292.0,9.107e-05]
[1731277551651,0.061458,81303.0,81292.0,9.107e-05]
[1731277552162,0.3608,81298.0,81292.0,9.107e-05]
[1731277552343,0.061463,81296.0,81292.0,9.107e-05]
[1731277552742,0.061465,81293.0,81292.0,9.107e-05]
[1731277553352,0.3608,81293.0,81292.0,9.107e-05]
[1731277553552,0.72984,81293.0,81292.0,9.107e-05]
[1731277553752,0.36904,81293.0,81292.0,9.107e-05]
[1731277553956,0.40250872,81317.0,81292.0,0.18469479]
[1731277554142,0.40250872,81317.0,81295.0,0.3608]
[1731277554143,0.061448,81316.0,81295.0,0.3608]
[1731277554349,0.061449,81315.0,81295.0,0.3608]
[1731277554553,0.061449,81315.0,81296.0,0.18476486]
[1731277554757,0.40250872,81317.0,81296.0,0.18476486]
[1731277555049,0.36264662,81317.0,81296.0,0.18476486]
[1731277555251,0.00184662,81317.0,81300.0,0.3608]
[1731277555447,0.00184662,81317.0,81313.0,0.3608]
[1731277555854,0.00184662,81317.0,81314.0,0.1834755]
[1731277556152,0.00184662,81317.0,81310.0,0.1834755]
[1731277556354,0.00184662,81317.0,81314.0,0.3608]
[1731277556550,0.00184662,81317.0,81315.0,0.1848688]
[1731277556750,0.00184662,81317.0,81309.0,0.061453]
[1731277556950,0.00184662,81317.0,81311.0,0.5456688]
[1731277557156,0.00184662,81317.0,81311.0,0.3608]
[1731277557452,0.00184662,81317.0,81312.0,0.36851939]
[1731277557859,0.00184662,81317.0,81311.0,0.72931335]
[1731277558049,0.00184662,81317.0,81313.0,0.18486276]
[1731277558251,0.00184662,81317.0,81311.0,0.00096]
[1731277558457,0.061458,81304.0,81281.0,0.3608]
[1731277558651,0.3608,81297.0,81281.0,0.3608]
[1731277559265,0.00184662,81317.0,81278.0,0.02645705]
[1731277559561,0.00012414,81389.0,81367.0,0.3608]
[1731277559754,0.00012414,81389.0,81388.0,0.7216]
[1731277560151,0.061401,81379.0,81368.0,0.18395361]
[1731277560358,0.66872414,81389.0,81368.0,0.18395361]
[1731277560359,0.061408,81369.0,81368.0,0.0001179]
[1731277560655,0.3608,81383.0,81355.0,0.3608]
[1731277560656,0.0008221,81358.0,81355.0,0.3608]
[1731277560952,0.00184484,81386.0,81368.0,0.18402953]
[1731277561152,0.00184484,81386.0,81385.0,0.3608]
[1731277561552,0.00184484,81386.0,81385.0,0.54632204]
[1731277562464,0.00012414,81389.0,81385.0,0.91492204]
[1731277562657,0.00184454,81417.0,81399.0,0.27186167]
[1731277562862,0.00184454,81417.0,81416.0,0.7216]
[1731277563265,0.00184454,81417.0,81416.0,0.90521012]
[1731277563755,0.37032454,81417.0,81416.0,0.3608]
[1731277564069,0.06139,81393.0,81392.0,0.0057]
[1731277564365,0.061408,81370.0,81368.0,0.0057]
[1731277564552,0.061408,81370.0,81346.0,0.02458595]
[1731277564553,0.061419,81355.0,81345.0,0.0057]
[1731277564758,0.3608,81346.0,81326.0,0.0057]
[1731277564964,0.27186167,81334.0,81326.0,0.0057]
[1731277565155,0.27186167,81334.0,81305.0,0.3608]
[1731277565156,0.061451,81312.0,81305.0,0.3608]
[1731277565354,0.061451,81312.0,81298.0,0.00010133]
[1731277565563,0.361451,81312.0,81298.0,0.00010133]
[1731277565765,0.3608,81329.0,81298.0,0.00010133]
[1731277565766,0.38538595,81338.0,81311.0,0.3608]
[1731277566059,0.38538595,81338.0,81312.0,0.36796953]
[1731277566262,0.3608,81338.0,81312.0,0.36796953]
[1731277566465,0.3608,81347.0,81332.0,0.3608]
[1731277566656,0.3608,81373.0,81332.0,0.3608]
[1731277566853,0.00068,81448.0,81372.0,0.7216]
[1731277566854,0.3608,81409.0,81372.0,0.7216]
[1731277567064,0.3608,81430.0,81386.0,0.7216]
[1731277567269,0.3608,81440.0,81424.0,0.3608]
[1731277567457,0.41352,81442.0,81401.0,0.27186167]
[1731277567765,0.061359,81435.0,81412.0,0.00012761]
[1731277568065,0.061366,81425.0,81412.0,0.00012761]
[1731277568262,0.3608,81423.0,81412.0,0.00012761]
[1731277568461,0.061373,81416.0,81391.0,0.3608]
[1731277568766,0.3608,81423.0,81392.0,0.54492832]
[1731277568767,0.422181,81406.0,81392.0,0.54492832]
[1731277568959,0.422181,81406.0,81392.0,0.18412832]
[1731277569157,0.422181,81406.0,81381.0,0.3608]
[1731277569460,0.422181,81406.0,81371.0,0.3608]
[1731277569461,0.6608,81406.0,81383.0,0.3680041]
[1731277569666,0.422186,81399.0,81383.0,0.3680041]
[1731277569864,0.3608,81391.0,81383.0,0.00011523]
[1731277570364,0.41336,81400.0,81384.0,0.18339242]
[1731277570566,0.00064,81403.0,81391.0,0.3608]
[1731277570754,0.3608,81429.0,81402.0,0.3608]
[1731277571062,0.3018439,81423.0,81403.0,0.36795064]
[1731277571259,0.3608,81408.0,81403.0,0.36795064]
[1731277571458,0.061384,81401.0,81398.0,0.18328979]
[1731277571765,0.061389,81395.0,81384.0,0.36932026]
[1731277572068,0.3608,81392.0,81361.0,0.3608]
[1731277572262,0.061397,81384.0,81361.0,0.3608]
[1731277572567,0.422197,81384.0,81361.0,0.3608]
[1731277572754,0.422197,81384.0,81346.0,0.3608]
[1731277572755,0.061404,81375.0,81346.0,0.3608]
[1731277572956,0.00169247,81361.0,81343.0,0.00184379]
[1731277573161,0.00169247,81361.0,81347.0,0.18525249]
[1731277573371,0.00169247,81361.0,81344.0,0.37069853]
[1731277573662,0.00169247,81361.0,81343.0,0.00184379]
[1731277573854,0.00169247,81361.0,81355.0,0.00013707]
[1731277574054,0.00169247,81358.0,81355.0,0.00013707]
[1731277574256,0.00169247,81358.0,81356.0,0.37107344]
[1731277574766,0.41512464,81390.0,81360.0,0.27186167]
[1731277575064,0.06148512,81400.0,81376.0,0.061402]
[1731277575065,0.00010012,81400.0,81376.0,0.061402]
[1731277575260,0.00010012,81400.0,81395.0,0.3608]
[1731277575660,0.00010012,81400.0,81396.0,0.3695201]
[1731277577665,0.77408,81417.0,81397.0,0.36865735]
[1731277577860,0.77408,81417.0,81397.0,9.735e-05]
[1731277578060,0.77408,81417.0,81406.0,0.3608]
[1731277578369,0.77408,81417.0,81407.0,0.36715587]
[1731277579259,0.00169218,81412.0,81407.0,0.36715587]
[1731277579868,0.061378,81409.0,81407.0,0.18311485]
[1731277580461,0.00169218,81408.0,81407.0,0.18311485]
[1731277581960,0.06307118,81408.0,81407.0,0.18311485]
[1731277583070,0.06307118,81408.0,81398.0,0.0245856]
[1731277583071,0.00169218,81408.0,81399.0,0.18534791]
[1731277583370,0.015,81413.0,81407.0,0.36690958]
[1731277583565,0.015,81413.0,81400.0,0.54592345]
[1731277583768,0.015,81413.0,81408.0,0.18415854]
[1731277583960,0.015,81413.0,81408.0,0.18512345]
[1731277584160,0.015,81413.0,81411.0,0.3608]
[1731277584659,0.015,81413.0,81412.0,0.36982207]
[1731277584864,0.015,81413.0,81390.0,0.0057]
[1731277585064,0.015,81413.0,81403.0,0.36780618]
[1731277585264,0.061382,81404.0,81399.0,0.18469862]
[1731277585568,0.061382,81404.0,81403.0,0.36901135]
[1731277585959,0.061382,81404.0,81399.0,0.36901135]
[1731277586173,0.061382,81404.0,81391.0,0.3608]
[1731277586174,0.061379,81409.0,81403.0,0.18493202]
[1731277586472,0.061379,81409.0,81403.0,0.18407933]
[1731277586667,0.061379,81409.0,81400.0,0.18493202]
[1731277586866,0.061379,81409.0,81404.0,0.18541447]
[1731277587058,0.061379,81409.0,81402.0,0.36922732]
[1731277587258,0.061379,81409.0,81405.0,0.18541447]
[1731277587462,0.00169231,81407.0,81405.0,0.18541447]
[1731277587667,0.00169231,81407.0,81403.0,0.3686567]
[1731277587970,0.00169231,81407.0,81406.0,0.18541629]
[1731277588168,0.00169231,81407.0,81404.0,0.18541629]
[1731277588469,0.061379,81409.0,81406.0,0.18541629]
[1731277588768,0.00169231,81408.0,81405.0,0.18317508]
[1731277588969,0.061381,81406.0,81404.0,0.18317508]
[1731277589269,0.061381,81406.0,81403.0,0.36829118]
[1731277589473,0.061381,81406.0,81405.0,0.18317508]
[1731277589669,0.061381,81406.0,81404.0,0.18353367]
[1731277589870,0.061381,81406.0,81403.0,0.36664078]